Workbook

Sheet Ancestor Table
A1: ="ANCESTOR TABLE for "&C7&" "&B7 -> ANCESTOR TABLE for
B3: Enter information on this page for your direct ancestors. The parent/child numbers can be found in the far right columns.
B4: The names, years, etc below will automatically show information in the other tabs. GOLD cells are calculations; don't type in those cells.
A6: # | B6: Surname (primary) | C6: Given Name(s) | D6: Preferred Name | E6: Other Surname Spellings | F6: Birth Year | G6: Birth Place | H6: Death Year | I6: Death Place | J6: Est. Age | K6: Death Cause | L6: Marriage Year | M6: Marriage Place | N6: Est. Age | O6: Spouse # | P6: Child # | Q6: Father # | R6: Mother #
A7: 1 | J7: =IF(OR(ISBLANK(F7),ISBLANK(H7)),"",H7-F7) ->  | O7: -- | P7: -- | Q7: =A7*2 -> 2 | R7: =Q7+1 -> 3
A8: PARENTS | C8: =COUNTA(A9:A10) -> 2 | D8: =IF(COUNTA(C9:C10)=C8,"",C8-COUNTBLANK(C9:C10)) -> 0 | E8: =IF(OR(ISBLANK(D8),LEN(D8)=0),"All found",(C8-D8)&" remaining") -> 2 remaining
A9: =A7+1 -> 2 | J9: =IF(OR(ISBLANK(F9),ISBLANK(H9)),"",H9-F9) ->  | N9: =IF(OR(ISBLANK(F9),LEN(F9)=0,ISBLANK(L9),LEN(L9)=0),"",L9-F9) ->  | O9: =A9+1 -> 3 | P9: =TRUNC(A9/2,0) -> 1 | Q9: =A9*2 -> 4 | R9: =Q9+1 -> 5
A10: =A9+1 -> 3 | J10: =IF(OR(ISBLANK(F10),ISBLANK(H10)),"",H10-F10) ->  | L10: =IF(ISBLANK(L9),"",L9) ->  | O10: =A10-1 -> 2 | P10: =TRUNC(A10/2,0) -> 1 | Q10: =A10*2 -> 6 | R10: =Q10+1 -> 7
A11: GRAND PARENTS | C11: =COUNTA(A12:A15) -> 4 | D11: =IF(COUNTA(C12:C15)=C11,"",C11-COUNTBLANK(C12:C15)) -> 0 | E11: =IF(OR(ISBLANK(D11),LEN(D11)=0),"All found",(C11-D11)&" remaining") -> 4 remaining
A12: =A10+1 -> 4 | J12: =IF(OR(ISBLANK(F12),ISBLANK(H12)),"",H12-F12) ->  | N12: =IF(OR(ISBLANK(F12),LEN(F12)=0,ISBLANK(L12),LEN(L12)=0),"",L12-F12) ->  | O12: =A12+1 -> 5 | P12: =TRUNC(A12/2,0) -> 2 | Q12: =A12*2 -> 8 | R12: =Q12+1 -> 9
A13: 5 | J13: =IF(OR(ISBLANK(F13),ISBLANK(H13)),"",H13-F13) ->  | L13: =IF(ISBLANK(L12),"",L12) ->  | O13: =A13-1 -> 4 | P13: =TRUNC(A13/2,0) -> 2 | Q13: =A13*2 -> 10 | R13: =Q13+1 -> 11
A14: 6 | J14: =IF(OR(ISBLANK(F14),ISBLANK(H14)),"",H14-F14) ->  | O14: =A14+1 -> 7 | P14: =TRUNC(A14/2,0) -> 3 | Q14: =A14*2 -> 12 | R14: =Q14+1 -> 13
A15: 7 | J15: =IF(OR(ISBLANK(F15),ISBLANK(H15)),"",H15-F15) ->  | L15: =IF(ISBLANK(L14),"",L14) ->  | O15: =A15-1 -> 6 | P15: =TRUNC(A15/2,0) -> 3 | Q15: =A15*2 -> 14 | R15: =Q15+1 -> 15
A16: 1X GREAT GRAND PARENTS | C16: =COUNTA(A17:A24) -> 8 | D16: =IF(COUNTA(C17:C24)=C16,"",C16-COUNTBLANK(C17:C24)) -> 0 | E16: =IF(OR(ISBLANK(D16),LEN(D16)=0),"All found",(C16-D16)&" remaining") -> 8 remaining
A17: =A15+1 -> 8 | J17: =IF(OR(ISBLANK(F17),ISBLANK(H17)),"",H17-F17) ->  | N17: =IF(OR(ISBLANK(F17),LEN(F17)=0,ISBLANK(L17),LEN(L17)=0),"",L17-F17) ->  | O17: =A17+1 -> 9 | P17: =TRUNC(A17/2,0) -> 4 | Q17: =A17*2 -> 16 | R17: =Q17+1 -> 17
A18: 9 | L18: =IF(ISBLANK(L17),"",L17) ->  | O18: =A18-1 -> 8 | P18: 4 | Q18: 18 | R18: 19
A19: 10 | O19: =A19+1 -> 11 | P19: 5 | Q19: 20 | R19: 21
A20: 11 | L20: =IF(ISBLANK(L19),"",L19) ->  | O20: =A20-1 -> 10 | P20: 5 | Q20: 22 | R20: 23
A21: 12 | O21: =A21+1 -> 13 | P21: 6 | Q21: 24 | R21: 25
A22: 13 | L22: =IF(ISBLANK(L21),"",L21) ->  | O22: =A22-1 -> 12 | P22: 6 | Q22: 26 | R22: 27
A23: 14 | O23: =A23+1 -> 15 | P23: 7 | Q23: 28 | R23: 29
A24: 15 | L24: =IF(ISBLANK(L23),"",L23) ->  | O24: =A24-1 -> 14 | P24: 7 | Q24: 30 | R24: 31
A25: 2X GREAT GRAND PARENTS | C25: =COUNTA(A26:A41) -> 16 | D25: =IF(COUNTA(C26:C41)=C25,"",C25-COUNTBLANK(C26:C41)) -> 0 | E25: =IF(OR(ISBLANK(D25),LEN(D25)=0),"All found",(C25-D25)&" remaining") -> 16 remaining
A26: =A24+1 -> 16 | N26: =IF(OR(ISBLANK(F26),LEN(F26)=0,ISBLANK(L26),LEN(L26)=0),"",L26-F26) ->  | O26: =A26+1 -> 17 | P26: =TRUNC(A26/2,0) -> 8 | Q26: =A26*2 -> 32 | R26: =Q26+1 -> 33
A27: 17 | L27: =IF(ISBLANK(L26),"",L26) ->  | O27: =A27-1 -> 16 | P27: 8 | Q27: 34 | R27: 35
A28: 18 | O28: =A28+1 -> 19 | P28: 9 | Q28: 36 | R28: 37
A29: 19 | L29: =IF(ISBLANK(L28),"",L28) ->  | O29: =A29-1 -> 18 | P29: 9 | Q29: 38 | R29: 39
A30: 20 | O30: =A30+1 -> 21 | P30: 10 | Q30: 40 | R30: 41
A31: 21 | L31: =IF(ISBLANK(L30),"",L30) ->  | O31: =A31-1 -> 20 | P31: 10 | Q31: 42 | R31: 43
A32: 22 | O32: =A32+1 -> 23 | P32: 11 | Q32: 44 | R32: 45
A33: 23 | L33: =IF(ISBLANK(L32),"",L32) ->  | O33: =A33-1 -> 22 | P33: 11 | Q33: 46 | R33: 47
A34: 24 | O34: =A34+1 -> 25 | P34: 12 | Q34: 48 | R34: 49
A35: 25 | L35: =IF(ISBLANK(L34),"",L34) ->  | O35: =A35-1 -> 24 | P35: 12 | Q35: 50 | R35: 51
A36: 26 | O36: =A36+1 -> 27 | P36: 13 | Q36: 52 | R36: 53
A37: 27 | L37: =IF(ISBLANK(L36),"",L36) ->  | O37: =A37-1 -> 26 | P37: 13 | Q37: 54 | R37: 55
A38: 28 | O38: =A38+1 -> 29 | P38: 14 | Q38: 56 | R38: 57
A39: 29 | L39: =IF(ISBLANK(L38),"",L38) ->  | O39: =A39-1 -> 28 | P39: 14 | Q39: 58 | R39: 59
A40: 30 | O40: =A40+1 -> 31 | P40: 15 | Q40: 60 | R40: 61
A41: 31 | L41: =IF(ISBLANK(L40),"",L40) ->  | N41: =IF(OR(ISBLANK(F41),LEN(F41)=0,ISBLANK(L41),LEN(L41)=0),"",L41-F41) ->  | O41: =A41-1 -> 30 | P41: 15 | Q41: 62 | R41: 63
A42: 3X GREAT GRAND PARENTS | C42: =COUNTA(A43:A74) -> 32 | D42: =IF(COUNTA(C43:C74)=C42,"",C42-COUNTBLANK(C43:C74)) -> 0 | E42: =IF(OR(ISBLANK(D42),LEN(D42)=0),"All found",(C42-D42)&" remaining") -> 32 remaining
A43: =A41+1 -> 32 | N43: =IF(OR(ISBLANK(F43),LEN(F43)=0,ISBLANK(L43),LEN(L43)=0),"",L43-F43) ->  | O43: =A43+1 -> 33 | P43: =TRUNC(A43/2,0) -> 16 | Q43: =A43*2 -> 64 | R43: =Q43+1 -> 65
A44: =A43+1 -> 33 | L44: =IF(ISBLANK(L43),"",L43) ->  | M44: =IF(ISBLANK(M43),"",M43) ->  | O44: =A44-1 -> 32 | P44: 16 | Q44: 66 | R44: 67
A45: =A44+1 -> 34 | O45: =A45+1 -> 35 | P45: 17 | Q45: 68 | R45: 69
A46: 35 | L46: =IF(ISBLANK(L45),"",L45) ->  | M46: =IF(ISBLANK(M45),"",M45) ->  | O46: =A46-1 -> 34 | P46: 17 | Q46: 70 | R46: 71
A47: 36 | O47: =A47+1 -> 37 | P47: 18 | Q47: 72 | R47: 73
A48: 37 | L48: =IF(ISBLANK(L47),"",L47) ->  | M48: =IF(ISBLANK(M47),"",M47) ->  | O48: =A48-1 -> 36 | P48: 18 | Q48: 74 | R48: 75
A49: 38 | O49: =A49+1 -> 39 | P49: 19 | Q49: 76 | R49: 77
A50: 39 | L50: =IF(ISBLANK(L49),"",L49) ->  | O50: =A50-1 -> 38 | P50: 19 | Q50: 78 | R50: 79
A51: 40 | O51: =A51+1 -> 41 | P51: 20 | Q51: 80 | R51: 81
A52: 41 | L52: =IF(ISBLANK(L51),"",L51) ->  | O52: =A52-1 -> 40 | P52: 20 | Q52: 82 | R52: 83
A53: 42 | O53: =A53+1 -> 43 | P53: 21 | Q53: 84 | R53: 85
A54: 43 | L54: =IF(ISBLANK(L53),"",L53) ->  | O54: =A54-1 -> 42 | P54: 21 | Q54: 86 | R54: 87
A55: 44 | O55: =A55+1 -> 45 | P55: 22 | Q55: 88 | R55: 89
A56: 45 | L56: =IF(ISBLANK(L55),"",L55) ->  | O56: =A56-1 -> 44 | P56: 22 | Q56: 90 | R56: 91
A57: 46 | O57: =A57+1 -> 47 | P57: 23 | Q57: 92 | R57: 93
A58: 47 | L58: =IF(ISBLANK(L57),"",L57) ->  | O58: =A58-1 -> 46 | P58: 23 | Q58: 94 | R58: 95
A59: 48 | O59: =A59+1 -> 49 | P59: 24 | Q59: 96 | R59: 97
A60: 49 | L60: =IF(ISBLANK(L59),"",L59) ->  | O60: =A60-1 -> 48 | P60: 24 | Q60: 98 | R60: 99
A61: 50 | O61: =A61+1 -> 51 | P61: 25 | Q61: 100 | R61: 101
A62: 51 | L62: =IF(ISBLANK(L61),"",L61) ->  | O62: =A62-1 -> 50 | P62: 25 | Q62: 102 | R62: 103
A63: 52 | O63: =A63+1 -> 53 | P63: 26 | Q63: 104 | R63: 105
A64: 53 | L64: =IF(ISBLANK(L63),"",L63) ->  | O64: =A64-1 -> 52 | P64: 26 | Q64: 106 | R64: 107
A65: 54 | O65: =A65+1 -> 55 | P65: 27 | Q65: 108 | R65: 109
A66: 55 | L66: =IF(ISBLANK(L65),"",L65) ->  | O66: =A66-1 -> 54 | P66: 27 | Q66: 110 | R66: 111
A67: 56 | O67: =A67+1 -> 57 | P67: 28 | Q67: 112 | R67: 113
A68: 57 | L68: =IF(ISBLANK(L67),"",L67) ->  | O68: =A68-1 -> 56 | P68: 28 | Q68: 114 | R68: 115
A69: 58 | O69: =A69+1 -> 59 | P69: 29 | Q69: 116 | R69: 117
A70: 59 | L70: =IF(ISBLANK(L69),"",L69) ->  | O70: =A70-1 -> 58 | P70: 29 | Q70: 118 | R70: 119
A71: 60 | O71: =A71+1 -> 61 | P71: 30 | Q71: 120 | R71: 121
A72: 61 | L72: =IF(ISBLANK(L71),"",L71) ->  | O72: =A72-1 -> 60 | P72: 30 | Q72: 122 | R72: 123
A73: 62 | O73: =A73+1 -> 63 | P73: 31 | Q73: 124 | R73: 125
A74: 63 | L74: =IF(ISBLANK(L73),"",L73) ->  | O74: =A74-1 -> 62 | P74: 31 | Q74: 126 | R74: 127
A75: 4X GREAT GRAND PARENTS | C75: =COUNTA(A76:A139) -> 64 | D75: =IF(COUNTA(C76:C139)=C75,"",C75-COUNTBLANK(C76:C107)) -> 32 | E75: =IF(OR(ISBLANK(D75),LEN(D75)=0),"All found",(C75-D75)&" remaining") -> 32 remaining
A76: =A74+1 -> 64 | J76: =IF(OR(ISBLANK(F76),ISBLANK(H76)),"",H76-F76) ->  | N76: =IF(OR(ISBLANK(F76),LEN(F76)=0,ISBLANK(L76),LEN(L76)=0),"",L76-F76) ->  | O76: =A76+1 -> 65 | P76: =TRUNC(A76/2,0) -> 32 | Q76: =A76*2 -> 128 | R76: 129
A77: =A76+1 -> 65 | L77: =IF(ISBLANK(L76),"",L76) ->  | M77: =IF(ISBLANK(M76),"",M76) ->  | O77: =A77-1 -> 64 | P77: 32 | Q77: 130 | R77: 131
A78: =A77+1 -> 66 | J78: =IF(OR(ISBLANK(F78),ISBLANK(H78)),"",H78-F78) ->  | N78: =IF(OR(ISBLANK(F78),LEN(F78)=0,ISBLANK(L78),LEN(L78)=0),"",L78-F78) ->  | O78: =A78+1 -> 67 | P78: =TRUNC(A78/2,0) -> 33 | Q78: =A78*2 -> 132 | R78: 133
A79: 67 | L79: =IF(ISBLANK(L78),"",L78) ->  | M79: =IF(ISBLANK(M78),"",M78) ->  | O79: =A79-1 -> 66 | P79: 33 | Q79: 134 | R79: 135
A80: 68 | O80: =A80+1 -> 69 | P80: 34 | Q80: 136 | R80: 137
A81: 69 | L81: =IF(ISBLANK(L80),"",L80) ->  | M81: =IF(ISBLANK(M80),"",M80) ->  | O81: =A81-1 -> 68 | P81: 34 | Q81: 138 | R81: 139
A82: 70 | O82: =A82+1 -> 71 | P82: 35 | Q82: 140 | R82: 141
A83: 71 | L83: =IF(ISBLANK(L82),"",L82) ->  | M83: =IF(ISBLANK(M82),"",M82) ->  | O83: =A83-1 -> 70 | P83: 35 | Q83: 142 | R83: 143
A84: 72 | O84: =A84+1 -> 73 | P84: 36 | Q84: 144 | R84: 145
A85: 73 | L85: =IF(ISBLANK(L84),"",L84) ->  | M85: =IF(ISBLANK(M84),"",M84) ->  | O85: =A85-1 -> 72 | P85: 36 | Q85: 146 | R85: 147
A86: 74 | O86: =A86+1 -> 75 | P86: 37 | Q86: 148 | R86: 149
A87: 75 | L87: =IF(ISBLANK(L86),"",L86) ->  | M87: =IF(ISBLANK(M86),"",M86) ->  | O87: =A87-1 -> 74 | P87: 37 | Q87: 150 | R87: 151
A88: 76 | O88: =A88+1 -> 77 | P88: 38 | Q88: 152 | R88: 153
A89: 77 | L89: =IF(ISBLANK(L88),"",L88) ->  | M89: =IF(ISBLANK(M88),"",M88) ->  | O89: =A89-1 -> 76 | P89: 38 | Q89: 154 | R89: 155
A90: 78 | O90: =A90+1 -> 79 | P90: 39 | Q90: 156 | R90: 157
A91: 79 | L91: =IF(ISBLANK(L90),"",L90) ->  | M91: =IF(ISBLANK(M90),"",M90) ->  | O91: =A91-1 -> 78 | P91: 39 | Q91: 158 | R91: 159
A92: 80 | O92: =A92+1 -> 81 | P92: 40 | Q92: 160 | R92: 161
A93: 81 | L93: =IF(ISBLANK(L92),"",L92) ->  | M93: =IF(ISBLANK(M92),"",M92) ->  | O93: =A93-1 -> 80 | P93: 40 | Q93: 162 | R93: 163
A94: 82 | O94: =A94+1 -> 83 | P94: 41 | Q94: 164 | R94: 165
A95: 83 | L95: =IF(ISBLANK(L94),"",L94) ->  | M95: =IF(ISBLANK(M94),"",M94) ->  | O95: =A95-1 -> 82 | P95: 41 | Q95: 166 | R95: 167
A96: 84 | O96: =A96+1 -> 85 | P96: 42 | Q96: 168 | R96: 169
A97: 85 | L97: =IF(ISBLANK(L96),"",L96) ->  | M97: =IF(ISBLANK(M96),"",M96) ->  | O97: =A97-1 -> 84 | P97: 42 | Q97: 170 | R97: 171
A98: 86 | O98: =A98+1 -> 87 | P98: 43 | Q98: 172 | R98: 173
A99: 87 | L99: =IF(ISBLANK(L98),"",L98) ->  | M99: =IF(ISBLANK(M98),"",M98) ->  | O99: =A99-1 -> 86 | P99: 43 | Q99: 174 | R99: 175
A100: 88 | O100: =A100+1 -> 89 | P100: 44 | Q100: 176 | R100: 177
A101: 89 | L101: =IF(ISBLANK(L100),"",L100) ->  | M101: =IF(ISBLANK(M100),"",M100) ->  | O101: =A101-1 -> 88 | P101: 44 | Q101: 178 | R101: 179
A102: 90 | O102: =A102+1 -> 91 | P102: 45 | Q102: 180 | R102: 181
A103: 91 | L103: =IF(ISBLANK(L102),"",L102) ->  | M103: =IF(ISBLANK(M102),"",M102) ->  | O103: =A103-1 -> 90 | P103: 45 | Q103: 182 | R103: 183
A104: 92 | O104: =A104+1 -> 93 | P104: 46 | Q104: 184 | R104: 185
A105: 93 | L105: =IF(ISBLANK(L104),"",L104) ->  | M105: =IF(ISBLANK(M104),"",M104) ->  | O105: =A105-1 -> 92 | P105: 46 | Q105: 186 | R105: 187
A106: 94 | O106: =A106+1 -> 95 | P106: 47 | Q106: 188 | R106: 189
A107: 95 | L107: =IF(ISBLANK(L106),"",L106) ->  | M107: =IF(ISBLANK(M106),"",M106) ->  | O107: =A107-1 -> 94 | P107: 47 | Q107: 190 | R107: =Q107+1 -> 191
A108: 96 | O108: =A108+1 -> 97 | P108: 48 | Q108: 192 | R108: 193
A109: 97 | L109: =IF(ISBLANK(L108),"",L108) ->  | M109: =IF(ISBLANK(M108),"",M108) ->  | O109: =A109-1 -> 96 | P109: 48 | Q109: 194 | R109: =Q109+1 -> 195
A110: 98 | O110: =A110+1 -> 99 | P110: 49 | Q110: 196 | R110: 197
A111: 99 | L111: =IF(ISBLANK(L110),"",L110) ->  | M111: =IF(ISBLANK(M110),"",M110) ->  | O111: =A111-1 -> 98 | P111: 49 | Q111: 198 | R111: =Q111+1 -> 199
A112: 100 | O112: =A112+1 -> 101 | P112: 50 | Q112: 200 | R112: 201
A113: 101 | L113: =IF(ISBLANK(L112),"",L112) ->  | M113: =IF(ISBLANK(M112),"",M112) ->  | O113: =A113-1 -> 100 | P113: 50 | Q113: 202 | R113: =Q113+1 -> 203
A114: 102 | O114: =A114+1 -> 103 | P114: 51 | Q114: 204 | R114: 205
A115: 103 | L115: =IF(ISBLANK(L114),"",L114) ->  | M115: =IF(ISBLANK(M114),"",M114) ->  | O115: =A115-1 -> 102 | P115: 51 | Q115: 206 | R115: =Q115+1 -> 207
A116: 104 | O116: =A116+1 -> 105 | P116: 52 | Q116: 208 | R116: 209
A117: 105 | L117: =IF(ISBLANK(L116),"",L116) ->  | M117: =IF(ISBLANK(M116),"",M116) ->  | O117: =A117-1 -> 104 | P117: 52 | Q117: 210 | R117: =Q117+1 -> 211
A118: 106 | O118: =A118+1 -> 107 | P118: 53 | Q118: 212 | R118: 213
A119: 107 | L119: =IF(ISBLANK(L118),"",L118) ->  | M119: =IF(ISBLANK(M118),"",M118) ->  | O119: =A119-1 -> 106 | P119: 53 | Q119: 214 | R119: =Q119+1 -> 215
A120: 108 | O120: =A120+1 -> 109 | P120: 54 | Q120: 216 | R120: 217
A121: 109 | L121: =IF(ISBLANK(L120),"",L120) ->  | M121: =IF(ISBLANK(M120),"",M120) ->  | O121: =A121-1 -> 108 | P121: 54 | Q121: 218 | R121: =Q121+1 -> 219
A122: 110 | O122: =A122+1 -> 111 | P122: 55 | Q122: 220 | R122: 221
A123: 111 | L123: =IF(ISBLANK(L122),"",L122) ->  | M123: =IF(ISBLANK(M122),"",M122) ->  | O123: =A123-1 -> 110 | P123: 55 | Q123: 222 | R123: 223
A124: 112 | O124: =A124+1 -> 113 | P124: 56 | Q124: 224 | R124: 225
A125: 113 | L125: =IF(ISBLANK(L124),"",L124) ->  | M125: =IF(ISBLANK(M124),"",M124) ->  | O125: =A125-1 -> 112 | P125: 56 | Q125: 226 | R125: =Q125+1 -> 227
A126: 114 | O126: =A126+1 -> 115 | P126: 57 | Q126: 228 | R126: 229
A127: 115 | L127: =IF(ISBLANK(L126),"",L126) ->  | M127: =IF(ISBLANK(M126),"",M126) ->  | O127: =A127-1 -> 114 | P127: 57 | Q127: 230 | R127: =Q127+1 -> 231
A128: =A127+1 -> 116 | O128: =A128+1 -> 117 | P128: 58 | Q128: 232 | R128: 233
A129: 117 | L129: =IF(ISBLANK(L128),"",L128) ->  | M129: =IF(ISBLANK(M128),"",M128) ->  | O129: =A129-1 -> 116 | P129: 58 | Q129: 234 | R129: =Q129+1 -> 235
A130: 118 | O130: =A130+1 -> 119 | P130: 59 | Q130: 236 | R130: 237
A131: 119 | L131: =IF(ISBLANK(L130),"",L130) ->  | M131: =IF(ISBLANK(M130),"",M130) ->  | O131: =A131-1 -> 118 | P131: 59 | Q131: 238 | R131: =Q131+1 -> 239
A132: 120 | O132: =A132+1 -> 121 | P132: 60 | Q132: 240 | R132: 241
A133: 121 | L133: =IF(ISBLANK(L132),"",L132) ->  | M133: =IF(ISBLANK(M132),"",M132) ->  | O133: =A133-1 -> 120 | P133: 60 | Q133: 242 | R133: =Q133+1 -> 243
A134: 122 | O134: =A134+1 -> 123 | P134: 61 | Q134: 244 | R134: 245
A135: 123 | L135: =IF(ISBLANK(L134),"",L134) ->  | M135: =IF(ISBLANK(M134),"",M134) ->  | O135: =A135-1 -> 122 | P135: 61 | Q135: 246 | R135: =Q135+1 -> 247
A136: 124 | O136: =A136+1 -> 125 | P136: 62 | Q136: 248 | R136: 249
A137: 125 | L137: =IF(ISBLANK(L136),"",L136) ->  | M137: =IF(ISBLANK(M136),"",M136) ->  | O137: =A137-1 -> 124 | P137: 62 | Q137: 250 | R137: =Q137+1 -> 251
A138: 126 | O138: =A138+1 -> 127 | P138: 63 | Q138: 252 | R138: 253
A139: 127 | L139: =IF(ISBLANK(L138),"",L138) ->  | M139: =IF(ISBLANK(M138),"",M138) ->  | O139: =A139-1 -> 126 | P139: 63 | Q139: 254 | R139: =Q139+1 -> 255

Sheet Pedigree Chart
A1: ="5 GENERATION PEDIGREE CHART for "&'Ancestor Table'!C7&" "&'Ancestor Table'!B7 -> 5 GENERATION PEDIGREE CHART for
B3: SUBJECT | C3: PARENTS | D3: GRAND PARENTS | E3: 1X GREAT GRANDPARENTS | F3: 2X GREAT GRANDPARENTS
B6: This pedigree chart is automatically filled out using information provided in the Ancestor Table. | F6: ='Ancestor Table'!A26&". "&'Ancestor Table'!C26&" "&'Ancestor Table'!B26 -> 16.
B7: The names, years, etc are automatically pulled from the Ancestor Table. | F7: =IF(ISBLANK('Ancestor Table'!F26),"",'Ancestor Table'!F26)&" - "&IF(ISBLANK('Ancestor Table'!H26),"",'Ancestor Table'!H26)&IF(OR(ISBLANK('Ancestor Table'!H26),ISBLANK('Ancestor Table'!F26)),""," ("&('Ancestor Table'!H26-'Ancestor Table'!F26)&")") -> -
E8: ='Ancestor Table'!A17&". "&'Ancestor Table'!C17&" "&'Ancestor Table'!B17 -> 8. | F8: =IF(ISBLANK('Ancestor Table'!L26),"","m. "&'Ancestor Table'!L26) -> 
E9: =IF(ISBLANK('Ancestor Table'!F17),"",'Ancestor Table'!F17)&" - "&IF(ISBLANK('Ancestor Table'!H17),"",'Ancestor Table'!H17)&IF(OR(ISBLANK('Ancestor Table'!H17),ISBLANK('Ancestor Table'!F17)),""," ("&('Ancestor Table'!H17-'Ancestor Table'!F17)&")") -> -
E10: =IF(ISBLANK('Ancestor Table'!L17),"","m. "&'Ancestor Table'!L17) ->  | F10: ='Ancestor Table'!A27&". "&'Ancestor Table'!C27&" "&'Ancestor Table'!B27 -> 17.
F11: =IF(ISBLANK('Ancestor Table'!F27),"",'Ancestor Table'!F27)&" - "&IF(ISBLANK('Ancestor Table'!H27),"",'Ancestor Table'!H27)&IF(OR(ISBLANK('Ancestor Table'!H27),ISBLANK('Ancestor Table'!F27)),""," ("&('Ancestor Table'!H27-'Ancestor Table'!F27)&")") -> -
D12: ='Ancestor Table'!A12&". "&'Ancestor Table'!C12&" "&'Ancestor Table'!B12 -> 4.
D13: =IF(ISBLANK('Ancestor Table'!F12),"",'Ancestor Table'!F12)&" - "&IF(ISBLANK('Ancestor Table'!H12),"",'Ancestor Table'!H12)&IF(OR(ISBLANK('Ancestor Table'!H12),ISBLANK('Ancestor Table'!F12)),""," ("&('Ancestor Table'!H12-'Ancestor Table'!F12)&")") -> -
D14: =IF(ISBLANK('Ancestor Table'!L12),"","m. "&'Ancestor Table'!L12) ->  | F14: ='Ancestor Table'!A28&". "&'Ancestor Table'!C28&" "&'Ancestor Table'!B28 -> 18.
F15: =IF(ISBLANK('Ancestor Table'!F28),"",'Ancestor Table'!F28)&" - "&IF(ISBLANK('Ancestor Table'!H28),"",'Ancestor Table'!H28)&IF(OR(ISBLANK('Ancestor Table'!H28),ISBLANK('Ancestor Table'!F28)),""," ("&('Ancestor Table'!H28-'Ancestor Table'!F28)&")") -> -
E16: ='Ancestor Table'!A18&". "&'Ancestor Table'!C18&" "&'Ancestor Table'!B18 -> 9. | F16: =IF(ISBLANK('Ancestor Table'!L28),"","m. "&'Ancestor Table'!L28) -> 
E17: =IF(ISBLANK('Ancestor Table'!F18),"",'Ancestor Table'!F18)&" - "&IF(ISBLANK('Ancestor Table'!H18),"",'Ancestor Table'!H18)&IF(OR(ISBLANK('Ancestor Table'!H18),ISBLANK('Ancestor Table'!F18)),""," ("&('Ancestor Table'!H18-'Ancestor Table'!F18)&")") -> -
F18: ='Ancestor Table'!A29&". "&'Ancestor Table'!C29&" "&'Ancestor Table'!B29 -> 19.
F19: =IF(ISBLANK('Ancestor Table'!F29),"",'Ancestor Table'!F29)&" - "&IF(ISBLANK('Ancestor Table'!H29),"",'Ancestor Table'!H29)&IF(OR(ISBLANK('Ancestor Table'!H29),ISBLANK('Ancestor Table'!F29)),""," ("&('Ancestor Table'!H29-'Ancestor Table'!F29)&")") -> -
C20: ='Ancestor Table'!A9&". "&'Ancestor Table'!C9&" "&'Ancestor Table'!B9 -> 2.
C21: =IF(ISBLANK('Ancestor Table'!F9),"",'Ancestor Table'!F9)&" - "&IF(ISBLANK('Ancestor Table'!H9),"",'Ancestor Table'!H9)&IF(OR(ISBLANK('Ancestor Table'!H9),ISBLANK('Ancestor Table'!F9)),""," ("&('Ancestor Table'!H9-'Ancestor Table'!F9)&")") -> -
C22: =IF(ISBLANK('Ancestor Table'!L9),"","m. "&'Ancestor Table'!L9) ->  | F22: ='Ancestor Table'!A30&". "&'Ancestor Table'!C30&" "&'Ancestor Table'!B30 -> 20.
F23: =IF(ISBLANK('Ancestor Table'!F30),"",'Ancestor Table'!F30)&" - "&IF(ISBLANK('Ancestor Table'!H30),"",'Ancestor Table'!H30)&IF(OR(ISBLANK('Ancestor Table'!H30),ISBLANK('Ancestor Table'!F30)),""," ("&('Ancestor Table'!H30-'Ancestor Table'!F30)&")") -> -
E24: ='Ancestor Table'!A19&". "&'Ancestor Table'!C19&" "&'Ancestor Table'!B19 -> 10. | F24: =IF(ISBLANK('Ancestor Table'!L30),"","m. "&'Ancestor Table'!L30) -> 
E25: =IF(ISBLANK('Ancestor Table'!F19),"",'Ancestor Table'!F19)&" - "&IF(ISBLANK('Ancestor Table'!H19),"",'Ancestor Table'!H19)&IF(OR(ISBLANK('Ancestor Table'!H19),ISBLANK('Ancestor Table'!F19)),""," ("&('Ancestor Table'!H19-'Ancestor Table'!F19)&")") -> -
E26: =IF(ISBLANK('Ancestor Table'!L19),"","m. "&'Ancestor Table'!L19) ->  | F26: ='Ancestor Table'!A31&". "&'Ancestor Table'!C31&" "&'Ancestor Table'!B31 -> 21.
F27: =IF(ISBLANK('Ancestor Table'!F31),"",'Ancestor Table'!F31)&" - "&IF(ISBLANK('Ancestor Table'!H31),"",'Ancestor Table'!H31)&IF(OR(ISBLANK('Ancestor Table'!H31),ISBLANK('Ancestor Table'!F31)),""," ("&('Ancestor Table'!H31-'Ancestor Table'!F31)&")") -> -
D28: ='Ancestor Table'!A13&". "&'Ancestor Table'!C13&" "&'Ancestor Table'!B13 -> 5.
D29: =IF(ISBLANK('Ancestor Table'!F13),"",'Ancestor Table'!F13)&" - "&IF(ISBLANK('Ancestor Table'!H13),"",'Ancestor Table'!H13)&IF(OR(ISBLANK('Ancestor Table'!H13),ISBLANK('Ancestor Table'!F13)),""," ("&('Ancestor Table'!H13-'Ancestor Table'!F13)&")") -> -
F30: ='Ancestor Table'!A32&". "&'Ancestor Table'!C32&" "&'Ancestor Table'!B32 -> 22.
F31: =IF(ISBLANK('Ancestor Table'!F32),"",'Ancestor Table'!F32)&" - "&IF(ISBLANK('Ancestor Table'!H32),"",'Ancestor Table'!H32)&IF(OR(ISBLANK('Ancestor Table'!H32),ISBLANK('Ancestor Table'!F32)),""," ("&('Ancestor Table'!H32-'Ancestor Table'!F32)&")") -> -
E32: ='Ancestor Table'!A20&". "&'Ancestor Table'!C20&" "&'Ancestor Table'!B20 -> 11. | F32: =IF(ISBLANK('Ancestor Table'!L32),"","m. "&'Ancestor Table'!L32) -> 
E33: =IF(ISBLANK('Ancestor Table'!F20),"",'Ancestor Table'!F20)&" - "&IF(ISBLANK('Ancestor Table'!H20),"",'Ancestor Table'!H20)&IF(OR(ISBLANK('Ancestor Table'!H20),ISBLANK('Ancestor Table'!F20)),""," ("&('Ancestor Table'!H20-'Ancestor Table'!F20)&")") -> -
F34: ='Ancestor Table'!A33&". "&'Ancestor Table'!C33&" "&'Ancestor Table'!B33 -> 23.
F35: =IF(ISBLANK('Ancestor Table'!F33),"",'Ancestor Table'!F33)&" - "&IF(ISBLANK('Ancestor Table'!H33),"",'Ancestor Table'!H33)&IF(OR(ISBLANK('Ancestor Table'!H33),ISBLANK('Ancestor Table'!F33)),""," ("&('Ancestor Table'!H33-'Ancestor Table'!F33)&")") -> -
B36: ='Ancestor Table'!A7&". "&'Ancestor Table'!C7&" "&'Ancestor Table'!B7 -> 1.
B37: =IF(ISBLANK('Ancestor Table'!F7),"",'Ancestor Table'!F7)&" - "&IF(ISBLANK('Ancestor Table'!H7),"",'Ancestor Table'!H7)&IF(OR(ISBLANK('Ancestor Table'!H7),ISBLANK('Ancestor Table'!F7)),""," ("&('Ancestor Table'!H7-'Ancestor Table'!F7)&")") -> -
F38: ='Ancestor Table'!A34&". "&'Ancestor Table'!C34&" "&'Ancestor Table'!B34 -> 24.
F39: =IF(ISBLANK('Ancestor Table'!F34),"",'Ancestor Table'!F34)&" - "&IF(ISBLANK('Ancestor Table'!H34),"",'Ancestor Table'!H34)&IF(OR(ISBLANK('Ancestor Table'!H34),ISBLANK('Ancestor Table'!F34)),""," ("&('Ancestor Table'!H34-'Ancestor Table'!F34)&")") -> -
E40: ='Ancestor Table'!A21&". "&'Ancestor Table'!C21&" "&'Ancestor Table'!B21 -> 12. | F40: =IF(ISBLANK('Ancestor Table'!L34),"","m. "&'Ancestor Table'!L34) -> 
E41: =IF(ISBLANK('Ancestor Table'!F21),"",'Ancestor Table'!F21)&" - "&IF(ISBLANK('Ancestor Table'!H21),"",'Ancestor Table'!H21)&IF(OR(ISBLANK('Ancestor Table'!H21),ISBLANK('Ancestor Table'!F21)),""," ("&('Ancestor Table'!H21-'Ancestor Table'!F21)&")") -> -
E42: =IF(ISBLANK('Ancestor Table'!L22),"","m. "&'Ancestor Table'!L21) -> m. | F42: ='Ancestor Table'!A35&". "&'Ancestor Table'!C35&" "&'Ancestor Table'!B35 -> 25.
F43: =IF(ISBLANK('Ancestor Table'!F35),"",'Ancestor Table'!F35)&" - "&IF(ISBLANK('Ancestor Table'!H35),"",'Ancestor Table'!H35)&IF(OR(ISBLANK('Ancestor Table'!H35),ISBLANK('Ancestor Table'!F35)),""," ("&('Ancestor Table'!H35-'Ancestor Table'!F35)&")") -> -
D44: ='Ancestor Table'!A14&". "&'Ancestor Table'!C14&" "&'Ancestor Table'!B14 -> 6.
D45: =IF(ISBLANK('Ancestor Table'!F14),"",'Ancestor Table'!F14)&" - "&IF(ISBLANK('Ancestor Table'!H14),"",'Ancestor Table'!H14)&IF(OR(ISBLANK('Ancestor Table'!H14),ISBLANK('Ancestor Table'!F14)),""," ("&('Ancestor Table'!H14-'Ancestor Table'!F14)&")") -> -
D46: =IF(ISBLANK('Ancestor Table'!L14),"","m. "&'Ancestor Table'!L14) ->  | F46: ='Ancestor Table'!A36&". "&'Ancestor Table'!C36&" "&'Ancestor Table'!B36 -> 26.
F47: =IF(ISBLANK('Ancestor Table'!F36),"",'Ancestor Table'!F36)&" - "&IF(ISBLANK('Ancestor Table'!H36),"",'Ancestor Table'!H36)&IF(OR(ISBLANK('Ancestor Table'!H36),ISBLANK('Ancestor Table'!F36)),""," ("&('Ancestor Table'!H36-'Ancestor Table'!F36)&")") -> -
E48: ='Ancestor Table'!A22&". "&'Ancestor Table'!C22&" "&'Ancestor Table'!B22 -> 13. | F48: =IF(ISBLANK('Ancestor Table'!L36),"","m. "&'Ancestor Table'!L36) -> 
E49: =IF(ISBLANK('Ancestor Table'!F22),"",'Ancestor Table'!F22)&" - "&IF(ISBLANK('Ancestor Table'!H22),"",'Ancestor Table'!H22)&IF(OR(ISBLANK('Ancestor Table'!H22),ISBLANK('Ancestor Table'!F22)),""," ("&('Ancestor Table'!H22-'Ancestor Table'!F22)&")") -> -
F50: ='Ancestor Table'!A37&". "&'Ancestor Table'!C37&" "&'Ancestor Table'!B37 -> 27.
F51: =IF(ISBLANK('Ancestor Table'!F37),"",'Ancestor Table'!F37)&" - "&IF(ISBLANK('Ancestor Table'!H37),"",'Ancestor Table'!H37)&IF(OR(ISBLANK('Ancestor Table'!H37),ISBLANK('Ancestor Table'!F37)),""," ("&('Ancestor Table'!H37-'Ancestor Table'!F37)&")") -> -
C52: ='Ancestor Table'!A10&". "&'Ancestor Table'!C10&" "&'Ancestor Table'!B10 -> 3.
C53: =IF(ISBLANK('Ancestor Table'!F10),"",'Ancestor Table'!F10)&" - "&IF(ISBLANK('Ancestor Table'!H10),"",'Ancestor Table'!H10)&IF(OR(ISBLANK('Ancestor Table'!H10),ISBLANK('Ancestor Table'!F10)),""," ("&('Ancestor Table'!H10-'Ancestor Table'!F10)&")") -> - | F53: ='Ancestor Table'!A38&". "&'Ancestor Table'!C38&" "&'Ancestor Table'!B38 -> 28.
F54: =IF(ISBLANK('Ancestor Table'!F38),"",'Ancestor Table'!F38)&" - "&IF(ISBLANK('Ancestor Table'!H38),"",'Ancestor Table'!H38)&IF(OR(ISBLANK('Ancestor Table'!H38),ISBLANK('Ancestor Table'!F38)),""," ("&('Ancestor Table'!H38-'Ancestor Table'!F38)&")") -> -
E55: ='Ancestor Table'!A23&". "&'Ancestor Table'!C23&" "&'Ancestor Table'!B23 -> 14. | F55: =IF(ISBLANK('Ancestor Table'!L38),"","m. "&'Ancestor Table'!L38) -> 
E56: =IF(ISBLANK('Ancestor Table'!F23),"",'Ancestor Table'!F23)&" - "&IF(ISBLANK('Ancestor Table'!H23),"",'Ancestor Table'!H23)&IF(OR(ISBLANK('Ancestor Table'!H23),ISBLANK('Ancestor Table'!F23)),""," ("&('Ancestor Table'!H23-'Ancestor Table'!F23)&")") -> -
E57: =IF(ISBLANK('Ancestor Table'!L23),"","m. "&'Ancestor Table'!L23) ->  | F57: ='Ancestor Table'!A39&". "&'Ancestor Table'!C39&" "&'Ancestor Table'!B39 -> 29.
F58: =IF(ISBLANK('Ancestor Table'!F39),"",'Ancestor Table'!F39)&" - "&IF(ISBLANK('Ancestor Table'!H39),"",'Ancestor Table'!H39)&IF(OR(ISBLANK('Ancestor Table'!H39),ISBLANK('Ancestor Table'!F39)),""," ("&('Ancestor Table'!H39-'Ancestor Table'!F39)&")") -> -
D59: ='Ancestor Table'!A15&". "&'Ancestor Table'!C15&" "&'Ancestor Table'!B15 -> 7.
D60: =IF(ISBLANK('Ancestor Table'!F15),"",'Ancestor Table'!F15)&" - "&IF(ISBLANK('Ancestor Table'!H15),"",'Ancestor Table'!H15)&IF(OR(ISBLANK('Ancestor Table'!H15),ISBLANK('Ancestor Table'!F15)),""," ("&('Ancestor Table'!H15-'Ancestor Table'!F15)&")") -> -
F61: ='Ancestor Table'!A40&". "&'Ancestor Table'!C40&" "&'Ancestor Table'!B40 -> 30.
F62: =IF(ISBLANK('Ancestor Table'!F40),"",'Ancestor Table'!F40)&" - "&IF(ISBLANK('Ancestor Table'!H40),"",'Ancestor Table'!H40)&IF(OR(ISBLANK('Ancestor Table'!H40),ISBLANK('Ancestor Table'!F40)),""," ("&('Ancestor Table'!H40-'Ancestor Table'!F40)&")") -> -
E63: ='Ancestor Table'!A24&". "&'Ancestor Table'!C24&" "&'Ancestor Table'!B24 -> 15. | F63: =IF(ISBLANK('Ancestor Table'!L39),"","m. "&'Ancestor Table'!L39) -> m.
E64: =IF(ISBLANK('Ancestor Table'!F24),"",'Ancestor Table'!F24)&" - "&IF(ISBLANK('Ancestor Table'!H24),"",'Ancestor Table'!H24)&IF(OR(ISBLANK('Ancestor Table'!H24),ISBLANK('Ancestor Table'!F24)),""," ("&('Ancestor Table'!H24-'Ancestor Table'!F24)&")") -> -
F65: ='Ancestor Table'!A41&". "&'Ancestor Table'!C41&" "&'Ancestor Table'!B41 -> 31.
F66: =IF(ISBLANK('Ancestor Table'!F41),"",'Ancestor Table'!F41)&" - "&IF(ISBLANK('Ancestor Table'!H41),"",'Ancestor Table'!H41)&IF(OR(ISBLANK('Ancestor Table'!H41),ISBLANK('Ancestor Table'!F41)),""," ("&('Ancestor Table'!H41-'Ancestor Table'!F41)&")") -> -

Sheet Surname Table
A1: ="SURNAME TABLE for "&'Ancestor Table'!C7&" "&'Ancestor Table'!B7 -> SURNAME TABLE for
A3: Identify new surnames within each generation to help determine where to research next.
A4: The surnames are automatically pulled from the Ancestor Table.
A6: 1 | B6: ='Ancestor Table'!A11 -> GRAND PARENTS | C6: =IF(ISBLANK('Ancestor Table'!B12),"",'Ancestor Table'!B12) ->  | D6: =IF(ISBLANK('Ancestor Table'!B13),"",'Ancestor Table'!B13) ->  | E6: =IF(ISBLANK('Ancestor Table'!B14),"",'Ancestor Table'!B14) ->  | F6: =IF(ISBLANK('Ancestor Table'!B15),"",'Ancestor Table'!B15) -> 
A7: 2 | B7: ='Ancestor Table'!A16 -> 1X GREAT GRAND PARENTS | C7: =IF(ISBLANK('Ancestor Table'!B18),"",'Ancestor Table'!B18) ->  | D7: =IF(ISBLANK('Ancestor Table'!B20),"",'Ancestor Table'!B20) ->  | E7: =IF(ISBLANK('Ancestor Table'!B22),"",'Ancestor Table'!B22) ->  | F7: =IF(ISBLANK('Ancestor Table'!B24),"",'Ancestor Table'!B24) -> 
A8: 3 | B8: ='Ancestor Table'!A25 -> 2X GREAT GRAND PARENTS | C8: =IF(ISBLANK('Ancestor Table'!B27),"",'Ancestor Table'!B27) ->  | D8: =IF(ISBLANK('Ancestor Table'!B31),"",'Ancestor Table'!B31) ->  | E8: =IF(ISBLANK('Ancestor Table'!B35),"",'Ancestor Table'!B35) ->  | F8: =IF(ISBLANK('Ancestor Table'!B39),"",'Ancestor Table'!B39) -> 
A9: 4 | C9: =IF(ISBLANK('Ancestor Table'!B29),"",'Ancestor Table'!B29) ->  | D9: =IF(ISBLANK('Ancestor Table'!B33),"",'Ancestor Table'!B33) ->  | E9: =IF(ISBLANK('Ancestor Table'!B37),"",'Ancestor Table'!B37) ->  | F9: =IF(ISBLANK('Ancestor Table'!B41),"",'Ancestor Table'!B41) -> 
A10: 5 | B10: ='Ancestor Table'!A42 -> 3X GREAT GRAND PARENTS | C10: =IF(ISBLANK('Ancestor Table'!B44),"",'Ancestor Table'!B44) ->  | D10: =IF(ISBLANK('Ancestor Table'!B52),"",'Ancestor Table'!B52) ->  | E10: =IF(ISBLANK('Ancestor Table'!B60),"",'Ancestor Table'!B60) ->  | F10: =IF(ISBLANK('Ancestor Table'!B68),"",'Ancestor Table'!B68) -> 
A11: 6 | C11: =IF(ISBLANK('Ancestor Table'!B46),"",'Ancestor Table'!B46) ->  | D11: =IF(ISBLANK('Ancestor Table'!B54),"",'Ancestor Table'!B54) ->  | E11: =IF(ISBLANK('Ancestor Table'!B62),"",'Ancestor Table'!B62) ->  | F11: =IF(ISBLANK('Ancestor Table'!B70),"",'Ancestor Table'!B70) -> 
A12: 7 | C12: =IF(ISBLANK('Ancestor Table'!B48),"",'Ancestor Table'!B48) ->  | D12: =IF(ISBLANK('Ancestor Table'!B56),"",'Ancestor Table'!B56) ->  | E12: =IF(ISBLANK('Ancestor Table'!B64),"",'Ancestor Table'!B64) ->  | F12: =IF(ISBLANK('Ancestor Table'!B72),"",'Ancestor Table'!B72) -> 
A13: 8 | C13: =IF(ISBLANK('Ancestor Table'!B50),"",'Ancestor Table'!B50) ->  | D13: =IF(ISBLANK('Ancestor Table'!B58),"",'Ancestor Table'!B58) ->  | E13: =IF(ISBLANK('Ancestor Table'!B66),"",'Ancestor Table'!B66) ->  | F13: =IF(ISBLANK('Ancestor Table'!B74),"",'Ancestor Table'!B74) -> 
A14: 9 | B14: ='Ancestor Table'!A75 -> 4X GREAT GRAND PARENTS | C14: =IF(ISBLANK('Ancestor Table'!B77),"",'Ancestor Table'!B77) ->  | E14: =IF(ISBLANK('Ancestor Table'!B109),"",'Ancestor Table'!B109) ->  | F14: =IF(ISBLANK('Ancestor Table'!B125),"",'Ancestor Table'!B125) -> 
A15: 10 | C15: =IF(ISBLANK('Ancestor Table'!B79),"",'Ancestor Table'!B79) ->  | E15: =IF(ISBLANK('Ancestor Table'!B111),"",'Ancestor Table'!B111) ->  | F15: =IF(ISBLANK('Ancestor Table'!B127),"",'Ancestor Table'!B127) -> 
A16: 11 | C16: =IF(ISBLANK('Ancestor Table'!B81),"",'Ancestor Table'!B81) ->  | E16: =IF(ISBLANK('Ancestor Table'!B113),"",'Ancestor Table'!B113) ->  | F16: =IF(ISBLANK('Ancestor Table'!B129),"",'Ancestor Table'!B129) -> 
A17: 12 | C17: =IF(ISBLANK('Ancestor Table'!B83),"",'Ancestor Table'!B83) ->  | E17: =IF(ISBLANK('Ancestor Table'!B115),"",'Ancestor Table'!B115) ->  | F17: =IF(ISBLANK('Ancestor Table'!B131),"",'Ancestor Table'!B131) -> 
A18: 13 | C18: =IF(ISBLANK('Ancestor Table'!B85),"",'Ancestor Table'!B85) ->  | E18: =IF(ISBLANK('Ancestor Table'!B117),"",'Ancestor Table'!B117) ->  | F18: =IF(ISBLANK('Ancestor Table'!B133),"",'Ancestor Table'!B133) -> 
A19: 14 | C19: =IF(ISBLANK('Ancestor Table'!B87),"",'Ancestor Table'!B87) ->  | E19: =IF(ISBLANK('Ancestor Table'!B119),"",'Ancestor Table'!B119) ->  | F19: =IF(ISBLANK('Ancestor Table'!B135),"",'Ancestor Table'!B135) -> 
A20: 15 | C20: =IF(ISBLANK('Ancestor Table'!B89),"",'Ancestor Table'!B89) ->  | E20: =IF(ISBLANK('Ancestor Table'!B121),"",'Ancestor Table'!B121) ->  | F20: =IF(ISBLANK('Ancestor Table'!B137),"",'Ancestor Table'!B137) -> 
A21: 16 | C21: =IF(ISBLANK('Ancestor Table'!B91),"",'Ancestor Table'!B91) ->  | E21: =IF(ISBLANK('Ancestor Table'!B123),"",'Ancestor Table'!B123) ->  | F21: =IF(ISBLANK('Ancestor Table'!B139),"",'Ancestor Table'!B139) -> 
A22: =A21+1 -> 17 | B22: MISSING SURNAMES: | C22: =COUNTBLANK(C6:C21) -> 16 | D22: =COUNTBLANK(D6:D21) -> 16 | E22: 16 | F22: 16
A23: =A22+1 -> 18 | B23: TOTAL MISSING SURNAMES: | C23: =SUM(C22:F22) -> 64
A24: =A23+1 -> 19 | B24: FOUND SURNAMES | C24: =16-C22 -> 0 | D24: =16-D22 -> 0 | E24: =16-E22 -> 0 | F24: =16-F22 -> 0
A25: =A24+1 -> 20 | B25: TOTAL FOUND SURNAMES: | C25: =SUM(C24:F24) -> 0
A27: Duplicates usually indicate another connection with the same surname. It might be sisters, cousins, etc
A28: or a completely unrelated family. Does not include spelling changes.

Sheet Research Count
A1: ="RESEARCH COUNT for "&'Ancestor Table'!C7&" "&'Ancestor Table'!B7 -> RESEARCH COUNT for
A3: The "Found" values are automatically pulled from the Ancestor Table using the "Given Name(s)" column.
A5: Generation # | B5: Generation Name | C5: Expected | D5: Found | E5: Remaining | F5: Most Recent Common Ancestor (MRCA)
A6: 1 | B6: SELF | C6: 1 | D6: =COUNTA('Ancestor Table'!C7) -> 0 | E6: =C6-D6 -> 1 | F6: =B7 -> PARENTS
A7: 2 | B7: PARENTS | C7: =C6*2 -> 2 | D7: =COUNTA('Ancestor Table'!C9:C10) -> 0 | E7: =C7-D7 -> 2 | F7: =B8 -> GRAND PARENTS
A8: 3 | B8: GRAND PARENTS | C8: =C7*2 -> 4 | D8: =COUNTA('Ancestor Table'!C12:C15) -> 0 | E8: 4 | F8: 1X GREAT GRAND PARENTS
A9: 4 | B9: 1X GREAT GRAND PARENTS | C9: 8 | D9: =COUNTA('Ancestor Table'!C17:C24) -> 0 | E9: 8 | F9: 2X GREAT GRAND PARENTS
A10: 5 | B10: 2X GREAT GRAND PARENTS | C10: 16 | D10: =COUNTA('Ancestor Table'!C26:C41) -> 0 | E10: 16 | F10: 3X GREAT GRAND PARENTS
A11: 6 | B11: 3X GREAT GRAND PARENTS | C11: 32 | D11: =COUNTA('Ancestor Table'!C43:C74) -> 0 | E11: 32 | F11: 4X GREAT GRAND PARENTS
A12: 7 | B12: 4X GREAT GRAND PARENTS | C12: =C11*2 -> 64 | D12: =COUNTA('Ancestor Table'!C76:C139) -> 0 | E12: 64 | F12: 5X GREAT GRAND PARENTS
C13: =SUM(C6:C12) -> 127 | D13: =SUM(D6:D12) -> 0 | E13: =SUM(E6:E12) -> 127
D14: =IF(C13=0,0,D13/C13) -> 0% | E14: =IF(C13=0,0,E13/C13) -> 100%

Sheet Metrics
A1: ="METRICS for "&'Ancestor Table'!C7&" "&'Ancestor Table'!B7 -> METRICS for
B3: Enter 'value' in the appropriate cell below based on the locations entered in the ancestor table. The 'count' column will use these values.
B4: You will need to enter matching place names from the ancestor table here to get the counts to work.
B6: Category | C6: Value | D6: Count
B7: Birth Place
C8: Ireland | D8: =COUNTIF('Ancestor Table'!G:G,Metrics!C8) -> 0
C9: New Jersey | D9: =COUNTIF('Ancestor Table'!G:G,Metrics!C9) -> 0
C10: New York | D10: =COUNTIF('Ancestor Table'!G:G,Metrics!C10) -> 0
C11: Pennsylvania | D11: =COUNTIF('Ancestor Table'!G:G,Metrics!C11) -> 0
B12: Marriage Place
C13: Ireland | D13: =COUNTIF('Ancestor Table'!M:M,Metrics!C8) -> 0
C14: New Jersey | D14: =COUNTIF('Ancestor Table'!M:M,Metrics!C9) -> 0
C15: New York | D15: =COUNTIF('Ancestor Table'!M:M,Metrics!C10) -> 0
C16: Pennsylvania | D16: =COUNTIF('Ancestor Table'!M:M,Metrics!C11) -> 0
B17: Death Place
C18: Ireland | D18: =COUNTIF('Ancestor Table'!I:I,Metrics!C8) -> 0
C19: New Jersey | D19: =COUNTIF('Ancestor Table'!I:I,Metrics!C9) -> 0
C20: New York | D20: =COUNTIF('Ancestor Table'!I:I,Metrics!C10) -> 0
C21: Pennsylvania | D21: =COUNTIF('Ancestor Table'!I:I,Metrics!C11) -> 0
B22: Marriage Metrics
C23: Average Age | D23: =AVERAGE('Ancestor Table'!N:N) -> 
C24: Oldest | D24: =MAX('Ancestor Table'!N:N) -> 0
C25: Youngest | D25: =MIN('Ancestor Table'!N:N) -> 0
B26: Death Metrics
C27: Average Age | D27: =AVERAGE('Ancestor Table'!J:J) -> 
C28: Oldest | D28: =MAX('Ancestor Table'!J:J) -> 0
C29: Youngest | D29: =MIN('Ancestor Table'!J:J) -> 0

Sheet DNA Matches
A1: ="DNA Matches for "&'Ancestor Table'!C7&" "&'Ancestor Table'!B7 -> DNA Matches for
A3: This chart only pulls the subject person's name (person #1) from the ancestor table. All other info is pulled from DNA matches. Feel free to add or remove columns to suit your research needs. | L3: BRANCH column: You will need to modify the CONDITIONAL FORMATTING to match the surnames of your grandparents.
A4: Enter information from your confirmed DNA matches below.
A6: Surname | B6: Given Name(s) | C6: Preferred | D6: Est. Relationship | E6: Service | F6: Username | G6: GEDMatch Kit # | H6: Centimorgans (cM) | I6: Segments | J6: Longest Block | K6: Type (at | X | Y) | L6: Branch | M6: Actual Relationship | N6: Most Recent Common Ancestors (MRCA) | O6: Match Notes | P6: Other Notes | Q6: Has Tree? | R6: Tree Public? | S6: Linked Tree? | T6: Shared Hints? | U6: NPE? | V6: Email Address | W6: Phone
A7: =IF(ISBLANK('Ancestor Table'!B7),"",'Ancestor Table'!B7) ->  | B7: =IF(ISBLANK('Ancestor Table'!C7),"",'Ancestor Table'!C7) ->  | C7: =IF(ISBLANK('Ancestor Table'!D7),"",'Ancestor Table'!D7) ->  | D7: HOME PERSON
